Cogmind - Beta 14 @@@ ROGUE MODE // 2024.11.18 @ 05:14:52 Player: Inverisimilidude Result: Core destroyed Performance ------------- Evolutions (0) 0 Regions Visited (2) 400 Robots Destroyed (10) 50 Value Destroyed (281) 281 Prototype IDs (0) 0 Alien Tech Used (0) 0 Bonus (0) 0 TOTAL SCORE: 731 Bonus ------- None Cogmind --------- Core Integrity 0/250 Matter 290/300 Energy 125/125 System Corruption 3% Temperature Cool (0) Movement Walking (120) Location -10/Mines Parts ------- > --- POWER (1) -------- Light Ion Engine > --- PROPULSION (2) --- Aluminum Leg Aluminum Leg > --- UTILITY (2) ------ Small Storage Unit Improved Terrain Scanner > --- WEAPON (2) ------- Small Laser Mining Laser > --- INVENTORY (8) ---- Ion Engine Light Treads Aluminum Leg Aluminum Leg Aluminum Leg Compact Wheel Compact Wheel ECM Suite Peak State ------------ > --- POWER ------------ Light Ion Engine > --- PROPULSION ------- Aluminum Leg Aluminum Leg > --- UTILITY ---------- Small Storage Unit Improved Terrain Scanner > --- WEAPON ----------- Small Laser Mining Laser > --- INVENTORY -------- Light Treads Aluminum Leg Aluminum Leg Aluminum Leg Compact Wheel Compact Wheel ECM Suite [Rating: 9] Favorites ----------- Power Ion Engine Engine Ion Engine Propulsion Aluminum Leg Leg Aluminum Leg Utility Small Storage Unit Device Improved Terrain Scanner Storage Small Storage Unit Weapon Light Assault Rifle Energy Gun Small Laser Ballistic Gun Light Assault Rifle Special Weapon Mining Laser Build | -11 -10 -10 ------- Run | Yrd Mat Min Slots Evolved . | . . . Power . | . . . Propulsion . | . . . Utility . | . . . Weapon . | . . . Parts Attached 18 | 6 3 9 Power 4 | 1 1 2 Engine 4 | 1 1 2 Core . | . . . Reactor . | . . . Propulsion 5 | 2 1 2 Treads . | . . . Leg 5 | 2 1 2 Wheel . | . . . Hover . | . . . Flight . | . . . Utility 3 | 1 1 1 Device 1 | . . 1 Storage 2 | 1 1 . Processor . | . . . Hackware . | . . . Protection . | . . . Artifact . | . . . Weapon 6 | 2 . 4 Energy Gun 3 | . . 3 Energy Cannon . | . . . Ballistic Gun 2 | 2 . . Ballistic Cannon . | . . . Launcher . | . . . Special Weapon 1 | . . 1 Impact Weapon . | . . . Slashing Weapon . | . . . Piercing Weapon . | . . . Special Melee Weapon . | . . . Unidentified Prototypes . | . . . Parts Lost 5 | . 2 3 Power 2 | . 1 1 Propulsion 1 | . . 1 Utility . | . . . Weapon 2 | . 1 1 Highest Loss Streak 2 | . 1 2 To Critical Strikes . | . . . Average Slot Usage (%) 86 | . 85 88 Engine 14 | . 14 14 Leg 25 | . 28 22 Storage 20 | . 14 26 Energy Gun 6 | . . 13 Ballistic Gun 17 | . 28 7 Peak Build Rating 9 | 6 6 9 Average Rating 5 | 4 5 6 On Entrance 4 | . 6 6 Naked Turns . | . . . Heaviest Build 14 | 12 13 14 Greatest Support 20 | 20 20 20 Greatest Overweight (x) 3 | 3 . 1 Average Overweight (x) . | . . . Largest Inventory Capacity 8 | 8 8 8 Average Capacity 7 | 7 8 8 Most Carried 8 | 6 8 8 Average Carried 7 | 3 7 7 Final Capacity 8 | 8 8 8 Final Carried 8 | 6 8 8 Class Distribution -------------------- 100% | Mutant Dominant Class ---------------- Mutant | -10/Materials Mutant | -10/Mines Resources | -11 -10 -10 ----------- Run | Yrd Mat Min Matter Collected 525 | 241 96 188 Remotely . | . . . Salvage Created 401 | . 257 144 Parts 20 | . 17 3 Haulers Intercepted . | . . . Recyclers Shooed 1 | . 1 . Parts Field Recycled . | . . . Retrieved Matter . | . . . Parts Self-Destructed . | . . . Prevented . | . . . Kills | -11 -10 -10 ------- Run | Yrd Mat Min Combat Hostiles Destroyed 13 | . 8 5 Guns 13 | . 8 5 Classes Destroyed 3 | . 2 1 Swarmer 3 | . 3 . Grunt 7 | . 5 2 Assembled 3 | . . 3 Best Kill Streak 3 | . 3 2 Combat Bots Only 3 | . 3 2 Max Kills in Single Turn 1 | . 1 1 Gunslinging . | . . . Exploded . | . . . Melee . | . . . Uniques/NPCs Destroyed . | . . . Combat | -11 -10 -10 -------- Run | Yrd Mat Min Hostile Shots Fired 118 | . 67 51 Missed 41 | . 29 12 Damage Taken 943 | . 420 523 Core 252 | . 91 161 Absorbed by Shields . | . . . Core Remaining (%) 100 | 100 . . Volleys Fired 60 | . 24 36 Largest 2 | . 2 2 Hottest 140 | . 40 140 Shots Fired 94 | . 48 46 Gun 93 | . 48 45 Cannon . | . . . Launcher . | . . . Special 1 | . . 1 Kinetic 64 | . 48 16 Thermal 30 | . . 30 Explosive . | . . . Electromagnetic . | . . . Robot Hit Streak 9 | . 9 7 Robot Miss Streak 3 | . 3 2 Penetration Max . | . . . Secondary Targets 1 | . 1 . Max Gunslinging Chain 1 | . 1 . Shots Hit Robots 62 | . 32 30 Core Hits 28 | . 15 13 Critical Kills . | . . . Critical Parts Destroyed . | . . . Critical Strikes . | . . . Melee Attacks . | . . . Impact . | . . . Slashing . | . . . Piercing . | . . . Sneak Attacks . | . . . Combat Hostiles . | . . . Follow-up Attacks . | . . . Damage Inflicted 580 | . 269 311 Guns 564 | . 269 295 Cannons . | . . . Explosions . | . . . Melee . | . . . Ramming 16 | . . 16 Kinetic 342 | . 269 73 Thermal 222 | . . 222 Explosive . | . . . Electromagnetic . | . . . Impact . | . . . Slashing . | . . . Piercing . | . . . Highest Corruption 3 | . 2 3 Average Corruption 2 | . 2 2 Corruption Purged . | . . . Corruption Blocked . | . . . Effects 8 | . 3 5 Message Errors 1 | . . 1 Matter Fused 3 | . 2 1 Energy Discharges 2 | . 1 1 Parts Rejected 1 | . . 1 Data Loss (minor) 1 | . . 1 Overload Shots . | . . . Overflow Damage . | . . . Projectiles . | . . . Explosions . | . . . Melee . | . . . Knockbacks . | . . . Impact . | . . . Kinetic . | . . . Secondary . | . . . Self-Inflicted Damage 16 | . . 16 Shots . | . . . Rammed . | . . . Targets Rammed . | . . . Kicked . | . . . Crushed . | . . . Highest Temperature 90 | . 12 90 Average Temperature 30 | . 6 44 Received Heat Transfer 201 | . 96 105 Siege Activations . | . . . Robots Corrupted . | . . . Combat Hostiles . | . . . Parts Fried . | . . . Impact Corruptions . | . . . Robots Melted . | . . . Combat Hostiles . | . . . Parts Melted . | . . . Heat Transferred 500 | . . 500 Parts Sabotaged . | . . . Parts Stolen . | . . . Parts Stripped . | . . . Power Chain Reactions . | . . . Alert | -11 -10 -10 ------- Run | Yrd Mat Min Peak Influence 254 | . 254 154 Initial 94 | . . 94 Average 112 | . 106 144 Maximum Alert Level 1 | . 1 . Low Security (%) 90 | 100 79 100 Level 1 9 | . 20 . Level 2 . | . . . Level 3 . | . . . Level 4 . | . . . Level 5 . | . . . High Security . | . . . Max Security . | . . . Squads Dispatched 3 | . 3 . Investigation 2 | . 2 . Extermination . | . . . Reinforcement 1 | . 1 . Assault . | . . . Garrison . | . . . Intercept . | . . . Searches Triggered . | . . . Construction Impeded . | . . . Haulers Reinforced . | . . . Active Scanning Responses . | . . . Cargo Convoy Interrupts . | . . . Stealth | -11 -10 -10 --------- Run | Yrd Mat Min Distress Signals . | . . . Communications Jammed . | . . . Distress Signals . | . . . Times Spotted 23 | . 18 5 Peak Tracking Total 4 | . 4 2 Tactical Retreats 3 | . 3 . Traps | -11 -10 -10 ------- Run | Yrd Mat Min Traps Triggered . | . . . Indirectly . | . . . Trap Hack Attempts . | . . . Triggered . | . . . Disarmed . | . . . Reprogrammed . | . . . Reused . | . . . Traps Extracted . | . . . Installed . | . . . Triggered 2 | . . 2 Machines | -11 -10 -10 ---------- Run | Yrd Mat Min Machines Disabled . | . . . Max in Single Turn . | . . . Machines Repaired . | . . . Machines Dismantled . | . . . Machines Sabotaged . | . . . Overloaded Fab Kills . | . . . Hacking | -11 -10 -10 --------- Run | Yrd Mat Min Machines Accessed 4 | . 4 . Terminals 4 | . 4 . Fabricators . | . . . Repair Stations . | . . . Recycling Units . | . . . Scanalyzers . | . . . Garrison Access . | . . . Total Hacks 9 | . 9 . Successful 2 | . 2 . Failed 7 | . 7 . Catastrophic 5 | . 5 . Database Lockouts . | . . . Manual 4 | . 4 . Terminals 9 | . 9 . Fabricators . | . . . Repair Stations . | . . . Recycling Units . | . . . Scanalyzers . | . . . Garrison Access . | . . . Terminal Hacks 2 | . 2 . Emergency Access Points 2 | . 2 . Fabricator Hacks . | . . . Repair Station Hacks . | . . . Recycling Unit Hacks . | . . . Scanalyzer . | . . . Garrison Access Hacks . | . . . Unauthorized Hacks . | . . . Terminals . | . . . Fabricators . | . . . Repair Stations . | . . . Recycling Units . | . . . Scanalyzers . | . . . Garrison Access . | . . . Data Cores Recovered . | . . . Used . | . . . Hacking Detections 4 | . 4 . Full Trace Events 2 | . 2 . Feedback Events . | . . . Feedback Blocked . | . . . Robot Schematics Acquired . | . . . Robots Built . | . . . Authchips . | . . . Time . | . . . Total Robot Build Rating . | . . . Part Schematics Acquired . | . . . Parts Built . | . . . Authchips . | . . . Time . | . . . Total Part Build Rating . | . . . Parts Repaired . | . . . Time . | . . . Parts Recycled . | . . . Recycled Matter . | . . . Retrieved Matter . | . . . Retrieved Components . | . . . Parts Scanalyzed . | . . . Part Schematics Acquired . | . . . Parts Damaged . | . . . Bothacking | -11 -10 -10 ------------ Run | Yrd Mat Min Used RIF Installer . | . . . Robots Hacked . | . . . Non-combat . | . . . Combat . | . . . Robot Hacks Applied . | . . . Relay Couplers Released . | . . . Fabnet Peak Effective % . | . . . Robots Rewired . | . . . Allies Hacked . | . . . Hacks Repelled . | . . . Allies | -11 -10 -10 -------- Run | Yrd Mat Min Total Allies . | . . . Largest Group . | . . . Highest-Rated Group . | . . . Highest-Rated Ally . | . . . Total Orders . | . . . Ally Attacks . | . . . Total Damage . | . . . Kills . | . . . Allies Corrupted . | . . . Allies Melted . | . . . Intel | -11 -10 -10 ------- Run | Yrd Mat Min Robot Analysis Total . | . . . Derelict Logs Recovered . | . . . Drone Launches . | . . . Drone Recoveries . | . . . Exploration | -11 -10 -10 ------------- Run | Yrd Mat Min Turns Passed 706 | 71 326 309 Spaces Moved 352 | 45 209 98 Core 18 | 18 . . Treads . | . . . Legs 334 | 27 209 98 Wheels . | . . . Hover . | . . . Flight . | . . . Fastest Speed 50 | 50 120 120 Average Speed 126 | 125 120 140 Slowest Speed 200 | 200 120 190 Overloaded Moves . | . . . Propulsion Burnouts . | . . . Robots Hopped . | . . . Cave-ins Triggered . | . . . Exploration Rate (%) 18 | 4 44 7 Regions Visited 2 Branch Regions 1 Pre-discovered Areas . | . . . Known Exits Taken . | . . . Unknown Exits Taken 2 | 1 1 . Scrap Searched . | . . . Spaces Dug . | . . . Terrain Destroyed . | . . . Melee . | . . . Projectile . | . . . AOE . | . . . Terrain Rammed 4 | . . 4 Walls Destroyed . | . . . Machines Disabled . | . . . Actions | -11 -10 -10 --------- Run | Yrd Mat Min Total 527 | 56 248 223 Wait 75 | . 5 70 Move 350 | 44 208 98 Hop . | . . . Pick Up 14 | 6 5 3 Fast Attach 12 | 6 1 5 Attach 4 | . 1 3 Detach . | . . . Swap 2 | . 1 1 Drop 7 | . 3 4 Fire 60 | . 24 36 Melee . | . . . Ram 3 | . . 3 Kick . | . . . Crush . | . . . Escape Stasis . | . . . Rewire . | . . . Trap . | . . . Miscellaneous . | . . . Route ------- -11/Scrapyard -10/Materials -10/Mines (discovered 1 exit: [Sub]) History --------- Turn | Location | Event 31 | -11/Scrapyard | Discovered new exit (range 16) 72 | -11/Scrapyard | Entered Materials 322 | -10/Materials | Build established: Mutant 380 | -10/Materials | Discovered new exit (range 8) 398 | -10/Materials | Entered Mines 415 | -10/Mines | Core integrity fell below 50% 453 | -10/Mines | Assembled infested the area 458 | -10/Mines | Assisted by a Guerilla fighting off Assembled 610 | -10/Mines | Core integrity fell below 20% 680 | -10/Mines | Discovered new exit (range 5) 707 | -10/Mines | Core destroyed Last Messages --------------- 00689_ Extracted 10 matter. 00698_ Acquired Ion Engine. 00701_ Dropped Sml. Laser. 00702_ Acquired Sml. Laser. 00703_ Kicked Earth. 00703_ Destabilizing: System corrupted (+1). 00703_ Destabilizing: Core damaged (-12). 00704_ Kicked Earth. 00704_ Destabilizing: System interference. 00704_ Mining Laser temporarily disabled. 00704_ Sml. Laser broken. 00704_ Destabilizing: Short circuit. 00705_ Kicked Earth. 00705_ Imp. Terrain Scanner broken. 00705_ Destabilizing: Short circuit. 00705_ Destabilizing: Core damaged (-2). 00707_ Kicked Earth. 00707_ Mining Laser broken. 00707_ Destabilizing: Short circuit. 00707_ Destabilizing: Core damaged (-10). Map ----- +----------------------------------------------------+ | | | | | | | | | | | | | | | | | | | | | | | | | | | | | | | | | | | ???????????????????#?????????????????????? | | ??????????#????????#???????#?????????????? | | ?????????????????????????????????????????? | | ???????????#??????#??????????????????????? | | ?????????#?????????????#????#????????????? | | ??####?????????????